fUST/lending_fUST_20240610
["ID","MTS","AMOUNT","RATE_DAILY","PERIOD"]
[328949166,1718026240496,-500.0,0.00019886,2]
[328949167,1718026240510,-500.0,0.00019886,2]
[328949168,1718026240520,-540.34511246,0.00019886,2]
[328949169,1718026240530,-500.0,0.00019886,2]
[328949170,1718026240540,-500.0,0.00019886,2]
[328949171,1718026240550,-659.0,0.00019886,2]
[328949172,1718026240560,-500.0,0.00019886,2]
[328949173,1718026240571,-500.0,0.00019886,2]
[328949174,1718026240580,-500.0,0.00019886,2]
[328949175,1718026240591,-2663.96,0.00019886,2]
[328949176,1718026240600,-500.0,0.00019886,2]
[328949177,1718026240610,-500.0,0.00019886,2]
[328949178,1718026240620,-500.0,0.00019886,2]
[328949179,1718026240630,-500.0,0.00019886,2]
[328949180,1718026240640,-500.0,0.00019886,2]
[328949181,1718026240651,-500.0,0.00019886,2]
[328949182,1718026240660,-3718.58,0.00019886,2]
[328949183,1718026240675,-500.0,0.00019886,2]
[328949184,1718026240685,-500.0,0.00019887,2]
[328949185,1718026240697,-500.0,0.00019887,2]
[328949186,1718026240706,-500.0,0.00019887,2]
[328949187,1718026240716,-500.0,0.00019887,2]
[328949188,1718026240728,-500.0,0.00019887,2]
[328949189,1718026240740,-500.00385671,0.00019887,2]
[328949190,1718026240752,-741.92,0.00019887,2]
[328949191,1718026240762,-500.0,0.00019887,2]
[328949192,1718026240772,-500.0,0.00019887,2]
[328949193,1718026240783,-504.10003465,0.00019887,2]
[328949194,1718026240793,-264.0991326,0.00019887,2]
[328949195,1718026240803,-500.0,0.00019887,2]
[328949196,1718026240813,-500.0,0.00019887,2]
[328949197,1718026240823,-500.0,0.00019887,2]
[328949198,1718026240833,-510.43548497,0.00019887,2]
[328949199,1718026240844,-500.0,0.00019887,2]
[328949200,1718026240853,-500.0,0.00019887,2]
[328949201,1718026240863,-500.0,0.00019887,2]
[328949202,1718026240873,-500.0,0.00019887,2]
[328949203,1718026240883,-500.0,0.00019887,2]
[328949204,1718026240893,-500.0,0.00019887,2]
[328949205,1718026240903,-500.0,0.00019887,2]
[328949206,1718026240913,-729.81,0.00019887,2]
[328949207,1718026240924,-500.0,0.00019887,2]
[328949208,1718026240933,-537.8,0.00019887,2]
[328949209,1718026240942,-3443.84,0.00019887,2]
[328949210,1718026240952,-500.0,0.00019887,2]
[328949211,1718026240962,-500.0,0.00019887,2]
[328949212,1718026240973,-603.91,0.00019887,2]
[328949213,1718026240983,-500.0,0.00019887,2]
[328949214,1718026240994,-500.0,0.00019887,2]
[328949215,1718026241006,-500.0,0.00019887,2]
[328949216,1718026241016,-500.0,0.00019887,2]
[328949217,1718026241026,-500.0,0.00019887,2]
[328949218,1718026241036,-500.0,0.00019887,2]
[328949219,1718026241046,-551.48,0.00019887,2]
[328949220,1718026241056,-500.0,0.00019887,2]
[328949221,1718026241066,-840.1,0.00019887,2]
[328949222,1718026241076,-505.70403239,0.00019887,2]
[328949223,1718026241086,-500.0,0.00019887,2]
[328949224,1718026241097,-500.0,0.00019887,2]
[328949225,1718026241108,-500.0,0.00019887,2]
[328949226,1718026241118,-500.0,0.00019887,2]
[328949227,1718026241129,-500.0,0.00019887,2]
[328949228,1718026241139,-500.0,0.00019887,2]
[328949229,1718026241150,-500.0,0.00019887,2]
[328949230,1718026241161,-500.0,0.00019887,2]
[328949231,1718026241173,-500.0,0.00019887,2]
[328949232,1718026241184,-500.0,0.00019887,2]
[328949233,1718026241194,-500.0,0.00019887,2]
[328949234,1718026241205,-500.0,0.00019887,2]
[328949235,1718026241216,-500.0,0.00019887,2]
[328949236,1718026241226,-500.0,0.00019887,2]
[328949237,1718026241236,-500.0,0.00019887,2]
[328949238,1718026241247,-500.0,0.00019887,2]
[328949239,1718026241258,-500.0,0.00019887,2]
[328949240,1718026241268,-3027.86,0.00019887,2]
[328949241,1718026241278,-500.0,0.00019887,2]
[328949242,1718026241288,-3067.73,0.00019887,2]
[328949243,1718026241298,-239.68246001,0.00019887,2]
[328949244,1718026241308,-500.0,0.00019887,2]
[328949245,1718026241318,-500.0,0.00019887,2]
[328949246,1718026241328,-500.0,0.00019887,2]
[328949247,1718026241339,-500.0,0.00019887,2]
[328949248,1718026241349,-500.0,0.00019887,2]
[328949249,1718026241359,-500.0,0.00019887,2]
[328949250,1718026241369,-500.0,0.00019887,2]
[328949251,1718026241379,-733.16,0.00019887,2]
[328949252,1718026241389,-605.29937364,0.00019887,2]
[328949253,1718026241399,-500.0,0.00019887,2]
[328949254,1718026241409,-6888.29,0.00019887,2]
[328949255,1718026241421,-746.04,0.00019887,2]
[328949256,1718026241432,-500.0,0.00019887,2]
[328949257,1718026241442,-500.0,0.00019887,2]
[328949258,1718026241452,-500.0,0.00019887,2]
[328949259,1718026241461,-164.36727464,0.00019888,2]
[328949260,1718026241471,-301.02784226,0.00019888,2]
[328949261,1718026241480,-304.0741033,0.00019888,2]
[328949262,1718026241491,-326.47314121,0.00019888,2]
[328949263,1718026241501,-195.31360129,0.00019888,2]
[328949264,1718026241510,-174.53647813,0.00019888,2]
[328949265,1718026241520,-183.06696409,0.00019888,2]
[328949266,1718026241530,-1458.63307318,0.00019888,2]
[328949267,1718026241539,-10539.6485585,0.00019889,2]
[328949268,1718026241550,-500.0,0.0001989,2]
[328949269,1718026241559,-500.0,0.0001989,2]
[328949270,1718026241569,-500.0,0.0001989,2]
[328949271,1718026241578,-500.0,0.0001989,2]
[328949272,1718026241588,-500.0,0.0001989,2]
[328949273,1718026241597,-579.18,0.0001989,2]
[328949274,1718026241607,-500.0,0.0001989,2]
[328949275,1718026241616,-500.0,0.0001989,2]
[328949276,1718026241626,-500.0,0.0001989,2]
[328949277,1718026241636,-500.0,0.0001989,2]
[328949278,1718026241645,-500.0,0.0001989,2]
[328949279,1718026241663,-500.0,0.0001989,2]
[328949280,1718026241676,-260.90098101,0.0001989,2]
[328949281,1718026241694,-500.0,0.0001989,2]
[328949282,1718026241706,-500.0,0.0001989,2]
[328949283,1718026241715,-500.0,0.0001989,2]
[328949284,1718026241725,-500.0,0.0001989,2]
[328949285,1718026241735,-506.47368469,0.0001989,2]
[328949286,1718026241748,-500.0,0.0001989,2]
[328949287,1718026241758,-500.0,0.0001989,2]
[328949288,1718026241767,-441.51979895,0.0001989,2]
[328949289,1718026241777,-500.0,0.0001989,2]
[328949290,1718026241788,-500.0,0.0001989,2]
[328949291,1718026241798,-500.0,0.0001989,2]
[328949292,1718026241808,-500.0,0.0001989,2]
[328949293,1718026241818,-500.0,0.0001989,2]
[328949294,1718026241828,-500.0,0.0001989,2]
[328949295,1718026241839,-500.0,0.0001989,2]
[328949296,1718026241848,-500.0,0.0001989,2]
[328949297,1718026241858,-500.0,0.0001989,2]
[328949298,1718026241869,-500.0,0.0001989,2]
[328949299,1718026241879,-510.29838926,0.0001989,2]
[328949300,1718026241889,-500.0,0.0001989,2]
[328949301,1718026241898,-500.0,0.0001989,2]
[328949302,1718026241909,-328.26362743,0.0001989,2]
[328949303,1718026241919,-501.36739134,0.0001989,2]
[328949304,1718026241928,-500.0,0.0001989,2]
[328949305,1718026241939,-500.0,0.0001989,2]
[328949306,1718026241949,-500.0,0.0001989,2]
[328949307,1718026241960,-500.0,0.0001989,2]
[328949308,1718026241971,-500.0,0.0001989,2]
[328949309,1718026241982,-500.0,0.0001989,2]
[328949310,1718026241993,-500.0,0.0001989,2]
[328949311,1718026242005,-500.0,0.0001989,2]
[328949312,1718026242016,-500.0,0.0001989,2]
[328949313,1718026242027,-500.0,0.0001989,2]
[328949314,1718026242038,-581.33844449,0.0001989,2]
[328949315,1718026242048,-500.0,0.0001989,2]
[328949316,1718026242058,-500.0,0.0001989,2]
[328949317,1718026242068,-500.0,0.0001989,2]
[328949318,1718026242079,-500.0,0.0001989,2]
[328949319,1718026242089,-500.0,0.0001989,2]
[328949320,1718026242099,-500.0,0.0001989,2]
[328949321,1718026242110,-500.0,0.0001989,2]
[328949323,1718026242120,-796.12,0.0001989,2]
[328949325,1718026242132,-500.0,0.0001989,2]
[328949327,1718026242142,-500.0,0.0001989,2]
[328949329,1718026242152,-2285.21,0.0001989,2]
[328949330,1718026242163,-500.0,0.0001989,2]
[328949331,1718026242174,-500.0,0.0001989,2]
[328949332,1718026242184,-500.0,0.0001989,2]
[328949333,1718026242193,-500.0,0.0001989,2]
[328949334,1718026242203,-500.0,0.0001989,2]
[328949335,1718026242214,-500.0,0.0001989,2]
[328949336,1718026242227,-500.0,0.0001989,2]
[328949337,1718026242237,-500.0,0.0001989,2]
[328949338,1718026242247,-500.0,0.0001989,2]
[328949339,1718026242258,-536.13,0.0001989,2]
[328949340,1718026242268,-500.0,0.0001989,2]
[328949341,1718026242278,-500.0,0.0001989,2]
[328949342,1718026242289,-500.0,0.0001989,2]
[328949343,1718026242299,-1059.01,0.0001989,2]
[328949344,1718026242309,-500.0,0.0001989,2]
[328949345,1718026242320,-6188.56,0.0001989,2]
[328949346,1718026242331,-500.0,0.0001989,2]
[328949347,1718026242341,-500.0,0.0001989,2]
[328949348,1718026242351,-500.0,0.0001989,2]
[328949350,1718026242361,-500.0,0.0001989,2]
[328949352,1718026242372,-500.0,0.0001989,2]
[328949353,1718026242382,-376.14812481,0.0001989,2]
[328949355,1718026242392,-353.10246345,0.0001989,2]
[328949356,1718026242403,-500.0,0.0001989,2]
[328949357,1718026242415,-500.0,0.0001989,2]
[328949358,1718026242427,-500.0,0.0001989,2]
[328949359,1718026242438,-238.35701963,0.0001989,2]
[328949360,1718026242448,-1215.43,0.0001989,2]
[328949361,1718026242458,-500.0,0.0001989,2]
[328949362,1718026242468,-586.16811941,0.0001989,2]
[328949363,1718026242478,-315.44711033,0.0001989,2]
[328949364,1718026242488,-500.0,0.0001989,2]
[328949365,1718026242498,-500.0,0.00019891,2]
[328949366,1718026242508,-500.0,0.00019891,2]
[328949367,1718026242519,-500.0,0.00019891,2]
[328949369,1718026242529,-500.0,0.00019891,2]
[328949371,1718026242539,-500.0,0.00019891,2]
[328949373,1718026242549,-500.0,0.00019891,2]
[328949376,1718026242645,-500.0,0.00019891,2]
[328949377,1718026242661,-500.0,0.00019891,2]
[328949378,1718026242674,-500.0,0.00019891,2]
[328949379,1718026242684,-500.0,0.00019891,2]
[328949380,1718026242695,-368.12646034,0.00019891,2]
[328949381,1718026242707,-500.0,0.00019891,2]
[328949382,1718026242718,-500.0,0.00019891,2]
[328949383,1718026242729,-500.0,0.00019891,2]
[328949384,1718026242741,-500.0,0.00019891,2]
[328949385,1718026242752,-500.0,0.00019891,2]
[328949386,1718026242762,-500.0,0.00019891,2]
[328949387,1718026242772,-500.0,0.00019891,2]
[328949388,1718026242782,-500.0,0.00019891,2]
[328949389,1718026242792,-500.0,0.00019891,2]
[328949390,1718026242802,-921.25,0.00019891,2]
[328949391,1718026242813,-500.0,0.00019891,2]
[328949392,1718026242823,-500.0,0.00019891,2]
[328949393,1718026242834,-500.0,0.00019891,2]
[328949394,1718026242844,-500.0,0.00019891,2]
[328949395,1718026242854,-500.0,0.00019891,2]
[328949396,1718026242865,-895.34,0.00019891,2]
[328949397,1718026242875,-500.0,0.00019891,2]
[328949398,1718026242886,-500.0,0.00019891,2]
[328949399,1718026242896,-500.0,0.00019891,2]
[328949400,1718026242906,-500.0,0.00019891,2]
[328949401,1718026242916,-500.0,0.00019891,2]
[328949402,1718026242928,-941.85,0.00019891,2]
[328949403,1718026242938,-500.0,0.00019891,2]
[328949404,1718026242948,-500.0,0.00019891,2]
[328949405,1718026242959,-500.0,0.00019891,2]
[328949406,1718026242969,-648.58,0.00019891,2]
[328949407,1718026242979,-500.0,0.00019891,2]
[328949408,1718026242990,-551.0393524,0.00019891,2]
[328949409,1718026243000,-500.0,0.00019891,2]
[328949410,1718026243010,-1281.7000677,0.00019892,2]
[328949411,1718026243020,-242.13468129,0.00019892,2]
[328949412,1718026243030,-155.05081033,0.00019892,2]
[328949413,1718026243039,-298.51015218,0.00019892,2]
[328949414,1718026243049,-250.20487116,0.00019892,2]
[328949415,1718026243058,-157.69330776,0.00019892,2]
[328949416,1718026243068,-2440.15741232,0.00019892,2]
[328949417,1718026243077,-181.8094771,0.00019892,2]
[328949418,1718026243087,-155.05359262,0.00019892,2]
[328949419,1718026243097,-1689.82993633,0.00019892,2]
[328949420,1718026243107,-177.78637968,0.00019892,2]
[328949421,1718026243116,-306.86917529,0.00019892,2]
[328949422,1718026243126,-181.12309527,0.00019892,2]
[328949423,1718026243136,-301.11945779,0.00019892,2]
[328949424,1718026243146,-155.08126378,0.00019892,2]
[328949425,1718026243156,-187.79873222,0.00019892,2]
[328949426,1718026243165,-225.83324689,0.00019892,2]
[328949427,1718026243177,-304.01173315,0.00019892,2]
[328949428,1718026243187,-300.73819799,0.00019892,2]
[328949429,1718026243196,-289.97449277,0.00019892,2]
[328949430,1718026243206,-500.0,0.00019895,2]
[328949431,1718026243216,-500.0,0.00019895,2]
[328949432,1718026243226,-265.38523263,0.00019895,2]
[328949433,1718026243236,-500.0,0.00019895,2]
[328949434,1718026243246,-500.0,0.00019895,2]
[328949435,1718026243255,-500.0,0.00019895,2]
[328949436,1718026243265,-433.46261431,0.00019895,2]
[328949437,1718026243275,-500.0,0.00019895,2]
[328949438,1718026243284,-500.0,0.00019895,2]
[328949439,1718026243294,-244.56921381,0.00019895,2]
[328949440,1718026243304,-500.0,0.00019895,2]
[328949441,1718026243314,-500.0,0.00019895,2]
[328949442,1718026243324,-528.11575486,0.00019895,2]
[328949443,1718026243334,-500.0,0.00019895,2]
[328949444,1718026243343,-500.0,0.00019895,2]
[328949445,1718026243353,-500.0,0.00019895,2]
[328949446,1718026243363,-199.37533274,0.00019895,2]
[328949447,1718026243373,-500.0,0.00019895,2]
[328949448,1718026243383,-500.0,0.00019895,2]
[328949450,1718026243393,-281.63022182,0.00019895,2]
[328949451,1718026243403,-500.0,0.00019895,2]
[328949452,1718026243413,-509.00916127,0.00019895,2]
[328949453,1718026243425,-9500.72304654,0.0002,2]
[328949454,1718026243435,-1000.0,0.0002,5]
[328949455,1718026243445,-158.01011982,0.0002,2]
[328949456,1718026243456,-173.27617835,0.0002,2]
[328949457,1718026243467,-1115.98840214,0.0002,2]
[328949458,1718026243477,-155.01395126,0.0002,2]
[328949459,1718026243487,-932.59223342,0.0002,2]
[328949460,1718026243497,-500.0,0.0002,2]
[328949461,1718026243507,-500.0,0.0002,2]
[328949462,1718026243516,-500.0,0.00020159,2]
[328949463,1718026243527,-500.0,0.00020159,2]
[328949464,1718026243537,-509.62,0.00020159,2]
[328949465,1718026243547,-6598.21,0.00020159,2]
[328949466,1718026243557,-500.0,0.00020159,2]
[328949467,1718026243567,-198.78648996,0.0002016,2]
[328949468,1718026243576,-500.0,0.0002016,2]
[328949469,1718026243586,-500.0,0.0002016,2]
[328949470,1718026243596,-500.0,0.0002016,2]
[328949471,1718026243606,-659.0,0.0002016,2]
[328949473,1718026243616,-500.0,0.0002016,2]
[328949474,1718026243626,-500.0,0.0002016,2]
[328949475,1718026243636,-500.0,0.0002016,2]
[328949476,1718026243645,-2663.96,0.0002016,2]
[328949478,1718026243663,-500.0,0.0002016,2]
[328949479,1718026243673,-500.0,0.0002016,2]
[328949480,1718026243683,-500.0,0.0002016,2]
[328949481,1718026243693,-500.0,0.0002016,2]
[328949482,1718026243706,-500.0,0.0002016,2]
[328949483,1718026243716,-500.0,0.0002016,2]
[328949484,1718026243726,-3718.58,0.0002016,2]
[328949486,1718026243735,-500.0,0.0002016,2]
[328949488,1718026243746,-500.0,0.00020161,2]
[328949489,1718026243756,-500.0,0.00020161,2]
[328949490,1718026243765,-500.0,0.00020161,2]
[328949491,1718026243775,-500.0,0.00020161,2]
[328949492,1718026243785,-500.0,0.00020161,2]
[328949493,1718026243795,-741.92,0.00020161,2]
[328949494,1718026243805,-500.0,0.00020161,2]
[328949495,1718026243814,-500.0,0.00020161,2]
[328949496,1718026243824,-500.0,0.00020161,2]
[328949498,1718026243834,-500.0,0.00020161,2]
[328949500,1718026243847,-500.0,0.00020161,2]
[328949502,1718026243857,-500.0,0.00020161,2]
[328949504,1718026243867,-500.0,0.00020161,2]
[328949505,1718026243877,-500.0,0.00020161,2]
[328949506,1718026243887,-500.0,0.00020161,2]
[328949507,1718026243896,-500.0,0.00020161,2]
[328949508,1718026243906,-500.0,0.00020161,2]
[328949509,1718026243915,-729.81,0.00020161,2]
[328949510,1718026243925,-500.0,0.00020161,2]
[328949511,1718026243934,-537.8,0.00020161,2]
[328949512,1718026243944,-3443.84,0.00020161,2]
[328949513,1718026243954,-500.0,0.00020161,2]
[328949514,1718026243963,-500.0,0.00020161,2]
[328949515,1718026243973,-603.91,0.00020161,2]
[328949516,1718026243983,-500.0,0.00020161,2]
[328949517,1718026243992,-291.59311324,0.00020161,2]
[328949518,1718026244006,-500.0,0.00020161,2]
[328949519,1718026244015,-500.0,0.00020161,2]
[328949520,1718026244025,-500.0,0.00020161,2]
[328949521,1718026244035,-500.0,0.00020161,2]
[328949522,1718026244045,-551.48,0.00020161,2]
[328949523,1718026244054,-840.1,0.00020161,2]
[328949524,1718026244064,-507.9335986,0.00020161,2]
[328949525,1718026244074,-500.0,0.00020161,2]
[328949526,1718026244084,-500.0,0.00020161,2]
[328949527,1718026244094,-500.0,0.00020161,2]
[328949529,1718026244103,-500.0,0.00020161,2]
[328949531,1718026244114,-500.0,0.00020161,2]
[328949532,1718026244123,-500.0,0.00020161,2]
[328949533,1718026244132,-500.0,0.00020161,2]
[328949534,1718026244143,-500.0,0.00020161,2]
[328949535,1718026244153,-500.0,0.00020161,2]
[328949536,1718026244162,-500.0,0.00020161,2]
[328949537,1718026244173,-500.0,0.00020161,2]
[328949538,1718026244182,-500.0,0.00020161,2]
[328949539,1718026244192,-500.0,0.00020161,2]
[328949541,1718026244202,-500.0,0.00020161,2]
[328949542,1718026244212,-500.0,0.00020161,2]
[328949544,1718026244222,-3027.86,0.00020161,2]
[328949545,1718026244232,-500.0,0.00020161,2]
[328949546,1718026244242,-3067.73,0.00020161,2]
[328949547,1718026244251,-500.0,0.00020161,2]
[328949548,1718026244262,-429.0637712,0.00020161,2]
[328949549,1718026244271,-500.0,0.00020161,2]
[328949550,1718026244281,-500.0,0.00020161,2]
[328949551,1718026244290,-733.16,0.00020161,2]
[328949552,1718026244299,-500.0,0.00020161,2]
[328949553,1718026244308,-6888.29,0.00020161,2]
[328949554,1718026244317,-746.04,0.00020161,2]
[328949555,1718026244327,-500.0,0.00020161,2]
[328949556,1718026244337,-500.0,0.00020161,2]
[328949557,1718026244346,-5148.12422148,0.00020162,2]
[328949559,1718026244356,-500.0,0.00020164,2]
[328949561,1718026244365,-500.0,0.00020164,2]
[328949562,1718026244375,-500.0,0.00020164,2]
[328949563,1718026244385,-500.0,0.00020164,2]
[328949564,1718026244394,-500.0,0.00020164,2]
[328949565,1718026244404,-579.18,0.00020164,2]
[328949566,1718026244413,-500.0,0.00020164,2]
[328949567,1718026244424,-500.0,0.00020164,2]
[328949568,1718026244433,-500.0,0.00020164,2]
[328949569,1718026244443,-643.13870491,0.00020164,2]
[328949570,1718026244453,-500.0,0.00020164,2]
[328949571,1718026244462,-500.0,0.00020164,2]
[328949572,1718026244472,-500.0,0.00020164,2]
[328949574,1718026244553,-500.0,0.00020164,2]
[328949576,1718026244564,-500.0,0.00020164,2]
[328949578,1718026244574,-500.0,0.00020164,2]
[328949579,1718026244584,-500.0,0.00020164,2]
[328949580,1718026244594,-500.0,0.00020164,2]
[328949581,1718026244604,-500.0,0.00020164,2]
[328949582,1718026244614,-500.0,0.00020164,2]
[328949583,1718026244624,-508.02677773,0.00020164,2]
[328949584,1718026244635,-508.21157244,0.00020164,2]
[328949585,1718026244645,-500.0,0.00020164,2]
[328949586,1718026244656,-500.0,0.00020164,2]
[328949587,1718026244669,-500.0,0.00020164,2]
[328949588,1718026244680,-500.0,0.00020164,2]
[328949589,1718026244690,-500.0,0.00020164,2]
[328949590,1718026244700,-500.0,0.00020164,2]
[328949591,1718026244711,-500.0,0.00020164,2]
[328949592,1718026244721,-506.94979493,0.00020164,2]
[328949593,1718026244731,-500.0,0.00020164,2]
[328949594,1718026244743,-500.0,0.00020164,2]
[328949595,1718026244753,-500.0,0.00020164,2]
[328949596,1718026244763,-500.0,0.00020164,2]
[328949597,1718026244773,-500.0,0.00020164,2]
[328949598,1718026244783,-500.0,0.00020164,2]
[328949600,1718026244792,-500.0,0.00020164,2]
[328949602,1718026244802,-500.0,0.00020164,2]
[328949603,1718026244812,-500.0,0.00020164,2]
[328949604,1718026244822,-500.0,0.00020164,2]
[328949605,1718026244832,-500.0,0.00020164,2]
[328949606,1718026244842,-500.0,0.00020164,2]
[328949607,1718026244852,-500.0,0.00020164,2]
[328949608,1718026244862,-796.12,0.00020164,2]
[328949609,1718026244872,-500.0,0.00020164,2]
[328949610,1718026244882,-500.0,0.00020164,2]
[328949611,1718026244892,-2285.21,0.00020164,2]
[328949612,1718026244902,-500.0,0.00020164,2]
[328949613,1718026244912,-500.0,0.00020164,2]
[328949614,1718026244922,-500.0,0.00020164,2]
[328949615,1718026244932,-500.0,0.00020164,2]
[328949616,1718026244941,-500.0,0.00020164,2]
[328949617,1718026244952,-500.0,0.00020164,2]
[328949618,1718026244961,-500.0,0.00020164,2]
[328949619,1718026244971,-500.0,0.00020164,2]
[328949620,1718026244981,-500.0,0.00020164,2]
[328949621,1718026244991,-536.13,0.00020164,2]
[328949622,1718026245001,-500.0,0.00020164,2]
[328949623,1718026245011,-500.0,0.00020164,2]
[328949625,1718026245022,-500.0,0.00020164,2]
[328949626,1718026245032,-1059.01,0.00020164,2]
[328949627,1718026245041,-500.0,0.00020164,2]
[328949628,1718026245052,-6188.56,0.00020164,2]
[328949629,1718026245062,-500.0,0.00020164,2]
[328949630,1718026245072,-500.0,0.00020164,2]
[328949631,1718026245083,-500.0,0.00020164,2]
[328949632,1718026245093,-500.0,0.00020164,2]
[328949633,1718026245103,-500.0,0.00020164,2]
[328949634,1718026245113,-500.0,0.00020164,2]
[328949635,1718026245123,-1215.43,0.00020164,2]
[328949636,1718026245134,-500.0,0.00020164,2]
[328949637,1718026245144,-500.0,0.00020164,2]
[328949638,1718026245155,-358.49130696,0.00020165,2]
[328949639,1718026245165,-500.0,0.00020165,2]
[328949640,1718026245177,-500.0,0.00020165,2]
[328949641,1718026245187,-500.0,0.00020165,2]
[328949642,1718026245197,-500.0,0.00020165,2]
[328949643,1718026245207,-500.0,0.00020165,2]
[328949644,1718026245217,-500.0,0.00020165,2]
[328949645,1718026245226,-500.0,0.00020165,2]
[328949646,1718026245236,-500.0,0.00020165,2]
[328949648,1718026245246,-500.0,0.00020165,2]
[328949650,1718026245257,-500.0,0.00020165,2]
[328949652,1718026245267,-500.0,0.00020165,2]
[328949654,1718026245277,-500.0,0.00020165,2]
[328949656,1718026245286,-500.0,0.00020165,2]
[328949658,1718026245296,-500.0,0.00020165,2]
[328949659,1718026245306,-500.0,0.00020165,2]
[328949661,1718026245316,-500.0,0.00020165,2]
[328949663,1718026245326,-500.0,0.00020165,2]
[328949665,1718026245336,-500.0,0.00020165,2]
[328949667,1718026245345,-921.25,0.00020165,2]
[328949669,1718026245356,-500.0,0.00020165,2]
[328949671,1718026245366,-500.0,0.00020165,2]
[328949673,1718026245376,-500.0,0.00020165,2]
[328949675,1718026245386,-500.0,0.00020165,2]
[328949678,1718026245396,-895.34,0.00020165,2]
[328949680,1718026245406,-500.0,0.00020165,2]
[328949681,1718026245415,-500.0,0.00020165,2]
[328949684,1718026245429,-500.0,0.00020165,2]
[328949686,1718026245438,-500.0,0.00020165,2]
[328949688,1718026245448,-500.0,0.00020165,2]
[328949690,1718026245458,-941.85,0.00020165,2]
[328949691,1718026245467,-500.0,0.00020165,2]
[328949693,1718026245477,-500.0,0.00020165,2]
[328949695,1718026245487,-500.0,0.00020165,2]
[328949697,1718026245497,-648.58,0.00020165,2]
[328949699,1718026245508,-500.0,0.00020165,2]
[328949701,1718026245518,-500.0,0.00020165,2]
[328949704,1718026245528,-161.28904267,0.00020167,2]
[328949706,1718026245539,-161.09306543,0.00020167,2]
[328949708,1718026245549,-164.99230098,0.00020168,2]
[328949710,1718026245559,-204.81434597,0.00020168,2]
[328949712,1718026245570,-282.66579838,0.00020168,2]
[328949714,1718026245580,-200.0,0.00020168,2]
[328949715,1718026245589,-500.0,0.00020169,2]
[328949717,1718026245599,-500.0,0.00020169,2]
[328949719,1718026245609,-500.0,0.00020169,2]
[328949721,1718026245619,-500.0,0.00020169,2]
[328949723,1718026245629,-500.0,0.00020169,2]
[328949725,1718026245639,-500.0,0.00020169,2]
[328949727,1718026245649,-500.0,0.00020169,2]
[328949730,1718026245663,-500.0,0.00020169,2]
[328949731,1718026245677,-500.0,0.00020169,2]
[328949733,1718026245687,-503.37031197,0.00020169,2]
[328949735,1718026245697,-500.0,0.00020169,2]
[328949737,1718026245707,-500.0,0.00020169,2]
[328949739,1718026245717,-625.63159404,0.00020169,2]
[328949741,1718026245727,-500.0,0.00020273,2]
[328949743,1718026245737,-500.0,0.00020273,2]
[328949745,1718026245749,-500.0,0.00020433,2]
[328949747,1718026245759,-509.62,0.00020433,2]
[328949749,1718026245769,-6598.21,0.00020433,2]